Cogmind - Beta 17 @@@ ROGUE MODE // 2026.07.28 @ 23:28:27 Player: oskarw Result: Destroyed by S-27 Virus with Autogun Performance ------------- Evolutions (5) 2500 Regions Visited (13) 2600 Robots Destroyed (317) 1585 Value Destroyed (10185) 10185 Prototype IDs (23) 460 Alien Tech Used (0) 0 Bonus (1617) 1617 TOTAL SCORE: 18947 Bonus ------- High Alert Combat Kills 1350 Follower Combat Kills 190 Entered DSFs 500 Friendly Fire -423 Cogmind --------- Core Integrity 0/1000 Matter 160/300 Energy 86/100 System Corruption 0% Temperature Cool (0) Movement Core (50) Location -5/Factory Parts ------- > --- POWER (2) -------- (None) > --- PROPULSION (6) --- (None) > --- UTILITY (7) ------ Structural Scanner Improved Terrain Scan Processor Improved Melee Analysis Suite > --- WEAPON (2) ------- (None) > --- INVENTORY (5) ---- Improved Hacking Suite Tesla Rifle Compact HERF Cannon Peak State ------------ > --- POWER ------------ Heavy Deuterium Engine Enhanced Nuclear Core > --- PROPULSION ------- Improved Titanium Leg Armored Leg Experimental Myomer Leg Experimental Myomer Leg Experimental Myomer Leg > --- UTILITY ---------- High-capacity Storage Unit Advanced Targeting Computer Improved Target Analyzer Improved Reaction Control System Hardened Medium Armor Plating Improved Shield Generator > --- WEAPON ----------- Improved EM Pulse Cannon Rocket Array > --- INVENTORY -------- Cooled Deuterium Engine Micro Nuclear Core Titanium Leg Improved Carbon-fiber Leg Improved Carbon-fiber Leg Improved Carbon-fiber Leg Large Storage Unit High-capacity Matter Pod Improved Sensor Array Hardened Medium Armor Plating Improved Light Armor Plating Thermal Shield Authchip [Device] High-powered Tractor Beam Plasma Cannon Improved Heavy Machine Gun Improved Grenade Launcher Rocket Array Impact Mace [Rating: 83] Favorites ----------- Power Light Nuclear Core Engine Light Ion Engine Power Core Light Nuclear Core Propulsion Aluminum Leg Treads Light Treads Leg Aluminum Leg Hover Unit Gravmag System Flight Unit Improved Flight Unit Utility Large Storage Unit Device Improved Terrain Scanner Storage Large Storage Unit Processor Advanced Targeting Computer Hackware Improved Hacking Suite Protection Light Armor Plating Weapon Assault Cannon Energy Gun Small Laser Energy Cannon Plasma Cannon Ballistic Gun Improved Assault Rifle Ballistic Cannon Assault Cannon Launcher Rocket Array Special Weapon Remote Datajack Impact Weapon Impact Mace Build | -11 -10 -9 -9 -8 -7 -7 -7 -7 -6 -6 -6 -6 -5 ------- Run | Yrd Mat Mat Min Mat Fac Was Fac Sto Fac Was Fac DSF Fac Slots Evolved 10 | . . 2 . 2 2 . . . 2 . . . 2 Power 1 | . . . . . 1 . . . . . . . . Propulsion 4 | . . 2 . 1 . . . . . . . . 1 Utility 5 | . . . . 1 1 . . . 2 . . . 1 Weapon . | . . . . . . . . . . . . . . Parts Attached 208 | 8 12 27 1 24 38 1 18 30 37 2 . . 10 Power 29 | 1 3 5 . 1 8 . 3 3 4 . . . 1 Engine 17 | 1 3 3 . . 4 . 1 2 3 . . . . Core 12 | . . 2 . 1 4 . 2 1 1 . . . 1 Reactor . | . . . . . . . . . . . . . . Propulsion 71 | 2 2 13 1 9 12 . 5 13 11 . . . 3 Treads 17 | 2 . . . 7 1 . 1 6 . . . . . Leg 39 | . 2 13 1 1 6 . 2 6 7 . . . 1 Wheel . | . . . . . . . . . . . . . . Hover 12 | . . . . . 5 . 1 1 4 . . . 1 Flight 3 | . . . . 1 . . 1 . . . . . 1 Utility 68 | 3 2 5 . 10 10 1 7 5 18 2 . . 5 Device 23 | 2 . 1 . 1 4 1 3 2 7 2 . . . Storage 5 | 1 1 . . 2 1 . . . . . . . . Processor 10 | . . . . 1 2 . 2 2 1 . . . 2 Hackware 4 | . . . . . . . . . 1 . . . 3 Protection 26 | . 1 4 . 6 3 . 2 1 9 . . . . Artifact . | . . . . . . . . . . . . . . Weapon 40 | 2 5 4 . 4 8 . 3 9 4 . . . 1 Energy Gun 11 | 1 2 . . 3 . . 2 2 . . . . 1 Energy Cannon 5 | . . . . . 2 . . 2 1 . . . . Ballistic Gun 8 | 1 1 . . . 4 . 1 . 1 . . . . Ballistic Cannon 9 | . 2 3 . 1 1 . . 1 1 . . . . Launcher 5 | . . 1 . . . . . 4 . . . . . Special Weapon 1 | . . . . . 1 . . . . . . . . Impact Weapon 1 | . . . . . . . . . 1 . . . . Slashing Weapon . | . . . . . . . . . . . . . . Piercing Weapon . | . . . . . . . . . . . . . . Special Melee Weapon . | . . . . . . . . . . . . . . Unidentified Prototypes 17 | . . 1 . 4 1 . 1 7 2 . . . 1 Corrupted Parts 4 | . . . . . . . 2 2 . . . . . System Corruption 16 | . . . . . . . 4 12 . . . . . Parts Lost 84 | . 5 3 . 8 24 . 3 1 20 2 . . 18 Power 12 | . 1 1 . . 4 . . . 4 1 . . 1 Propulsion 33 | . 2 . . 3 11 . 3 . 7 1 . . 6 Utility 23 | . . 2 . 4 4 . . . 6 . . . 7 Weapon 16 | . 2 . . 1 5 . . 1 3 . . . 4 Highest Loss Streak 12 | . 2 1 . 2 12 . 1 1 12 2 . . 10 To Critical Strikes . | . . . . . . . . . . . . . . Average Backups 14 | 3 9 14 15 14 16 15 12 15 15 10 11 12 7 Power . | . 1 . . . . 1 1 2 1 . . . . Propulsion 2 | 1 4 5 4 2 1 1 . 2 1 . . . . Utility 5 | . 3 4 6 6 6 6 5 5 6 4 5 6 4 Weapon 4 | . . 3 5 6 7 6 4 5 5 5 6 6 3 Tool/Special . | . . . . . . . . . . . . . . Unused Backups 30 | . 2 4 . 1 2 . 3 1 12 . . 1 4 Power 1 | . . . . . . . . 1 . . . . . Propulsion 6 | . 1 2 . . . . . . 3 . . . . Utility 16 | . 1 1 . 1 . . 2 . 8 . . 1 2 Weapon 5 | . . . . . 2 . 1 . . . . . 2 Tool/Special 2 | . . 1 . . . . . . 1 . . . . Average Slot Usage (%) 94 | . 99 99 100 94 92 87 95 99 91 71 65 60 44 Engine 6 | . 13 5 11 7 5 . 4 7 4 . . . . Core 4 | . . 5 . 1 4 15 10 6 5 4 . . 1 Treads 10 | . 11 . . 25 21 . 4 16 . . . . . Leg 20 | . 16 43 44 15 9 . 2 17 26 4 . . . Hover 4 | . . . . . 4 38 28 4 1 24 20 20 8 Device 7 | . 10 . . . 5 12 12 5 16 23 25 20 9 Storage 8 | . 14 11 11 9 7 7 7 7 6 6 6 6 2 Processor 3 | . . . . . 5 7 3 9 6 6 6 6 3 Protection 8 | . 3 10 11 13 9 2 5 6 7 . . . . Energy Gun 2 | . 11 . . 1 . . 3 1 . . . . . Energy Cannon 2 | . . . . . 1 1 3 6 6 . . . . Ballistic Gun 2 | . 5 . . . 5 . 3 1 . . 6 6 1 Ballistic Cannon 9 | . 10 21 21 16 7 . . . 3 . . . . Peak Build Rating 83 | 9 10 18 18 28 51 50 51 54 83 50 42 37 54 Average Rating 32 | 5 8 15 17 23 34 44 45 48 60 41 41 36 33 On Entrance 31 | . 9 8 18 18 27 50 45 44 52 55 37 37 37 Avg Prop Armor Cover (%) 5 | . . . . 8 3 . 8 3 6 9 . . 9 Naked Turns . | . . . . . . . . . . . . . . Heaviest Build 97 | 13 34 46 46 69 79 52 59 79 97 48 27 27 44 Greatest Support 111 | 40 40 40 40 102 102 45 50 109 111 37 27 27 27 Greatest Overweight (x) 12 | . 1 1 1 12 3 1 2 2 7 1 . . 4 Average Overweight (x) . | . . . 1 . . . . . . . . . . Largest Inventory Capacity 20 | 8 15 15 15 20 20 15 15 20 20 15 15 15 15 Average Capacity 16 | 7 12 15 15 16 19 15 15 19 19 15 15 15 8 Most Carried 20 | 5 14 15 15 20 20 15 15 19 20 15 14 15 15 Average Carried 14 | 3 9 14 15 15 15 14 12 15 15 12 14 13 7 Final Capacity 20 | 8 15 15 15 20 15 15 15 20 15 15 15 15 5 Final Carried 19 | 5 14 15 15 19 15 15 12 19 7 15 14 15 3 Class Distribution -------------------- 55% | Mutant 41% | Scavenger-Mutant Dominant Class ---------------- Mutant | -10/Materials Scavenger-Mutant | -9/Materials Scavenger-Mutant | -9/Mines Mutant | -8/Materials Scavenger-Mutant | -7/Factory Scavenger-Mutant | -7/Waste Scavenger-Mutant | -7/Factory Mutant | -7/Storage Mutant | -6/Factory Mutant | -6/Waste Mutant | -6/Factory Mutant | -6/DSF Hacker-Mutant | -5/Factory Resources | -11 -10 -9 -9 -8 -7 -7 -7 -7 -6 -6 -6 -6 -5 ----------- Run | Yrd Mat Mat Min Mat Fac Was Fac Sto Fac Was Fac DSF Fac Matter Collected 8577 | 275 659 1520 148 1436 1305 . 533 1057 1642 . . . 2 Remotely 1754 | . . 153 . . 341 . . 477 783 . . . . Salvage Created 9553 | 28 829 1584 141 1333 1199 . 523 746 3044 . . . 126 Parts 493 | 6 47 115 10 59 59 . 29 33 125 . . . 10 Haulers Intercepted 20 | . 2 6 . 3 . . 3 4 2 . . . . Recyclers Shooed 5 | . . 1 . . . . 1 . 3 . . . . Parts Field Recycled . | . . . . . . . . . . . . . . Retrieved Matter . | . . . . . . . . . . . . . . Parts Self-Destructed . | . . . . . . . . . . . . . . Prevented . | . . . . . . . . . . . . . . Parts Restored . | . . . . . . . . . . . . . . Kills | -11 -10 -9 -9 -8 -7 -7 -7 -7 -6 -6 -6 -6 -5 ------- Run | Yrd Mat Mat Min Mat Fac Was Fac Sto Fac Was Fac DSF Fac Combat Hostiles Destroyed 215 | . 21 47 11 32 29 . 8 11 52 . . . 4 Melee 4 | . . . . . . . . . 2 . . . 2 Guns 32 | . 15 . . 4 7 . 5 . 1 . . . . Cannons 104 | . 6 37 7 24 13 . 2 2 13 . . . . AOE 69 | . . 10 3 4 8 . . 9 33 . . . 2 Classes Destroyed 18 | 1 5 5 1 1 4 . . . 1 . . . . Worker 22 | . 2 5 . . 3 . 3 4 5 . . . . Builder 27 | . . 3 . . 5 . . . 18 . . . 1 Tunneler 3 | 2 . . . 1 . . . . . . . . . Hauler 20 | . 2 6 . 3 . . 3 4 2 . . . . Recycler 15 | . . 3 . 2 2 . . 1 7 . . . . Mechanic 4 | . . . . . 1 . . . 3 . . . . Operator 1 | . . 1 . . . . . . . . . . . Watcher 8 | . 1 4 . . . . 1 . 2 . . . . Swarmer 34 | . 6 17 6 . . . . 3 . . . . 2 Grunt 104 | . 15 21 4 20 8 . 3 3 28 . . . 2 Brawler 6 | . . . 1 2 . . . 1 2 . . . . Duelist 7 | . . 1 . 2 1 . . . 3 . . . . Protector 2 | . . . . . 1 . . . 1 . . . . Sentry 22 | . . 8 . 7 2 . . 4 1 . . . . Demolisher 1 | . . . . . . . . . 1 . . . . Specialist 4 | . . . . . 2 . . . 2 . . . . Hunter 19 | . . . . 1 7 . 1 . 10 . . . . Programmer 16 | . . . . . 8 . 4 . 4 . . . . Thug 1 | . . . . . . . . . 1 . . . . Best Kill Streak 17 | 2 8 9 3 5 11 . 6 5 17 . . . 3 Combat Bots Only 8 | . 6 7 3 5 8 . 2 4 8 . . . 2 Max Kills in Single Turn 16 | 1 2 4 2 3 4 . 4 5 16 . . . 2 Gunslinging 1 | . 1 . . . . . . . . . . . . Exploded 6 | . . 4 2 2 2 . . 3 6 . . . 2 Melee 1 | . . . . . . . . . 1 . . . 1 Uniques/NPCs Destroyed 1 | . . . . . . . . 1 . . . . . 01-MTF (-7/Storage) Combat | -11 -10 -9 -9 -8 -7 -7 -7 -7 -6 -6 -6 -6 -5 -------- Run | Yrd Mat Mat Min Mat Fac Was Fac Sto Fac Was Fac DSF Fac Hostile Shots Fired 1562 | . 112 196 45 148 325 . 57 117 367 1 . 3 191 Missed 525 | . 33 61 16 53 104 . 14 47 124 . . 1 72 Hits 1037 | . 79 135 29 95 221 . 43 70 243 1 . 2 119 Melee 17 | . . 1 . 3 1 . . . 9 1 . . 2 Projectile 1020 | . 79 134 29 92 220 . 43 70 234 . . 2 117 AOE 5 | . . . . . . . . . 5 . . . . Critical Strikes 40 | . . 2 . 8 7 . 3 1 12 1 . . 6 Part Disruptions 12 | . . . . . 1 . 1 9 1 . . . . Damage Taken 15606 | . 823 1512 303 1403 2757 21 811 1056 4388 50 . 103 2379 Core 2457 | . 78 199 19 120 270 . 148 99 514 . . . 1010 Absorbed by Shields 658 | . . . . 24 244 . . . 390 . . . . Ignored by Resistances 112 | . . . . . . . . . 112 . . . . Core Remaining (%) 59 | 100 68 . 45 78 . . . 26 . . . 39 . Volleys Fired 628 | 5 70 125 22 100 126 . 53 44 80 . . . 3 Largest 2 | 2 2 2 2 2 2 . 2 2 2 . . . 1 Hottest 149 | 70 80 74 74 98 149 . 135 138 149 . . . 45 Shots Fired 1186 | 10 135 245 44 183 232 . 105 82 147 . . . 3 Gun 314 | 10 111 . . 19 71 . 72 28 3 . . . . Cannon 801 | . 24 240 42 160 148 . 33 39 115 . . . . Launcher 65 | . . 5 2 4 7 . . 15 29 . . . 3 Special 6 | . . . . . 6 . . . . . . . . Kinetic 805 | 5 73 240 42 160 182 . 32 26 45 . . . . Thermal 220 | 5 52 . . 19 35 . 71 6 32 . . . . Explosive 65 | . . 5 2 4 7 . . 15 29 . . . 3 Electromagnetic 90 | . 10 . . . 2 . 2 35 41 . . . . Robot Hit Streak 24 | 4 13 18 4 10 19 . 7 18 24 . . . 2 Robot Miss Streak 5 | 2 5 4 3 4 5 . 3 4 2 . . . 1 Penetration Max 1 | . . . . . 1 . 1 . . . . . . Secondary Targets 1 | . 1 . . . . . . . . . . . . Max Gunslinging Chain 1 | . 1 . . . . . . . . . . . . Shots Hit Robots 743 | 6 87 143 19 124 137 . 55 43 119 . . . 10 Core Hits 606 | 2 38 73 10 58 71 . 19 49 277 . . . 9 Critical Kills 3 | . . . . . 2 . . . . . . . 1 Critical Parts Destroyed 3 | . . . . . . . . . 2 . . . 1 Critical Strikes 42 | . 4 9 2 8 10 . 1 1 5 . . . 2 Burn 6 | . 4 . . 1 . . 1 . . . . . . Meltdown 2 | . . . . . 2 . . . . . . . . Blast 29 | . . 9 2 7 8 . . . 3 . . . . Corrupt 1 | . . . . . . . . 1 . . . . . Smash 4 | . . . . . . . . . 2 . . . 2 Melee Attacks 24 | . . . . . . . . . 13 . . . 11 Impact 24 | . . . . . . . . . 13 . . . 11 Slashing . | . . . . . . . . . . . . . . Piercing . | . . . . . . . . . . . . . . Sneak Attacks . | . . . . . . . . . . . . . . Combat Hostiles . | . . . . . . . . . . . . . . Follow-up Attacks . | . . . . . . . . . . . . . . Damage Inflicted 30744 | 71 1261 4126 795 3844 4625 . 1880 2141 11114 . . . 887 Guns 3518 | 70 920 . . 340 877 . 1060 227 24 . . . . Cannons 12918 | . 323 3532 462 2848 2358 . 386 434 2575 . . . . Explosions 13014 | . . 517 331 568 1315 . 390 1480 7936 . . . 477 Melee 863 | . . . . . . . . . 457 . . . 406 Ramming 431 | 1 18 77 2 88 75 . 44 . 122 . . . 4 Kinetic 12033 | 20 722 3532 462 2848 2654 . 491 381 923 . . . . Thermal 3915 | 50 434 . 148 340 549 . 1285 277 832 . . . . Explosive 11918 | . . 517 183 568 1272 . . 1254 7647 . . . 477 Electromagnetic 1584 | . 87 . . . 75 . 60 229 1133 . . . . Impact 863 | . . . . . . . . . 457 . . . 406 Slashing . | . . . . . . . . . . . . . . Piercing . | . . . . . . . . . . . . . . Highest Corruption 31 | . . . . . 8 8 9 31 5 15 10 6 . Average Corruption 7 | . . . . . 4 6 5 18 3 11 8 6 . Corruption Purged 22 | . . . . . . 3 5 5 . 5 4 . . Corruption Blocked . | . . . . . . . . . . . . . . Effects 145 | . . . . . 36 2 29 49 19 6 3 1 . Message Errors 39 | . . . . . 9 1 7 14 3 3 2 . . Matter Fused 26 | . . . . . 6 . 5 9 5 1 . . . Heat Flow Errors 14 | . . . . . 3 1 2 6 1 1 . . . Energy Discharges 17 | . . . . . 5 . 6 4 1 . 1 . . Parts Rejected 6 | . . . . . . . 1 2 3 . . . . Parts Fused 1 | . . . . . . . . 1 . . . . . Data Loss (minor) 18 | . . . . . 5 . 4 5 3 . . 1 . Data Loss (major) 6 | . . . . . 2 . . 4 . . . . . Misfires 4 | . . . . . 1 . 1 . 2 . . . . Alerts 6 | . . . . . 4 . 1 . 1 . . . . Misdirections 3 | . . . . . . . . 2 . 1 . . . Weapon Failures 5 | . . . . . 1 . 2 2 . . . . . Overload Shots . | . . . . . . . . . . . . . . Overflow Damage 737 | . . 65 24 11 87 . 173 34 247 . . . 96 Projectiles 196 | . . 58 24 5 61 . 3 6 39 . . . . Explosions 379 | . . 7 . 6 26 . 170 28 92 . . . 50 Melee 162 | . . . . . . . . . 116 . . . 46 Knockbacks 103 | . 3 18 8 32 23 . . 1 13 . . . 5 Impact 8 | . . . . . 1 . . . 3 . . . 4 Kinetic 87 | . 3 17 7 29 20 . . 1 10 . . . . Secondary 8 | . . 1 1 3 2 . . . . . . . 1 Self-Inflicted Damage 809 | . . . 17 . 179 . 165 83 336 . . . 29 Shots 30 | . . . 1 . 6 . 2 1 18 . . . 2 Rammed 12 | 1 1 . . 6 1 . 2 . . . . . 1 Targets Rammed 39 | 1 6 9 1 6 4 . 2 . 9 . . . 1 Kicked 27 | . 5 9 1 . 3 . . . 9 . . . . Crushed . | . . . . . . . . . . . . . . Highest Temperature 613 | 27 195 341 237 252 345 205 378 425 613 100 . . . Average Temperature 86 | 12 42 62 76 60 90 90 79 116 155 51 . . . Received Heat Transfer 4013 | . 363 525 93 742 523 9 54 93 855 . . . 756 Effects 19 | . . 3 . . 2 . 2 . 12 . . . . Shutdowns 4 | . . . . . . . . . 4 . . . . Energy Bleed 5 | . . 1 . . 1 . 1 . 2 . . . . Interference 5 | . . 2 . . 1 . . . 2 . . . . Matter Decay 1 | . . . . . . . . . 1 . . . . Short Circuit 2 | . . . . . . . 1 . 1 . . . . Damage (major) 1 | . . . . . . . . . 1 . . . . Damage (core) 1 | . . . . . . . . . 1 . . . . Siege Activations . | . . . . . . . . . . . . . . Martial Activations . | . . . . . . . . . . . . . . Shielding Activations . | . . . . . . . . . . . . . . Robots Disrupted 1 | . . . . . . . . . 1 . . . . Combat Hostiles 1 | . . . . . . . . . 1 . . . . Robots Corrupted 6 | . . . 1 . . . . . 5 . . . . Combat Hostiles 4 | . . . 1 . . . . . 3 . . . . Parts Fried 12 | . . . 1 . . . 1 . 10 . . . . Impact Corruptions 8 | . . . 1 . . . . . 6 . . . 1 Robots Melted 3 | . . . . . 2 . 1 . . . . . . Combat Hostiles 2 | . . . . . 1 . 1 . . . . . . Parts Melted 15 | . 4 . 1 . 7 . 3 . . . . . . Heat Transferred 6877 | 148 1532 . 150 703 948 . 1886 224 1286 . . . . Parts Sabotaged 3 | . . . . . . . . . 3 . . . . Parts Stolen . | . . . . . . . . . . . . . . Parts Stripped . | . . . . . . . . . . . . . . Power Chain Reactions 3 | . . . . . . . . 2 1 . . . . Alert | -11 -10 -9 -9 -8 -7 -7 -7 -7 -6 -6 -6 -6 -5 ------- Run | Yrd Mat Mat Min Mat Fac Was Fac Sto Fac Was Fac DSF Fac Maximum Alert Level 4 | . . 3 2 2 1 . . 2 4 2 1 . . Low Security (%) 54 | 100 100 39 . 17 61 100 100 80 21 . . 100 100 Level 1 24 | . . 27 25 71 38 . . 11 11 8 100 . . Level 2 10 | . . 19 74 11 . . . 7 14 91 . . . Level 3 5 | . . 14 . . . . . . 25 . . . . Level 4 4 | . . . . . . . . . 27 . . . . Level 5 . | . . . . . . . . . . . . . . High Security . | . . . . . . . . . . . . . . Max Security . | . . . . . . . . . . . . . . Peak Influence 1351 | 5 175 868 551 457 302 103 149 467 1351 469 279 170 92 Initial 469 | . . . 335 187 150 103 37 48 182 469 279 170 88 Average 268 | 1 63 353 442 308 157 79 61 85 709 439 263 170 48 Influence Increases 7920 | 10 579 1485 423 912 996 . 437 828 1992 . 5 . 253 Destroy 0b10 Robot/C 4320 | . 420 940 220 640 560 . 160 260 1040 . . . 80 Destroy 0b10 Robot/NC 510 | 10 25 110 . 30 60 . 35 45 190 . . . 5 Destroy Leader 1044 | . 86 260 40 166 150 . 66 78 198 . . . . Allied During Kill 184 | . . . . . . . . 182 2 . . . . Successful Hack 156 | . 16 6 . 22 19 . 31 18 39 . 5 . . Disable Machine 675 | . 15 45 90 . 90 . 105 105 210 . . . 15 Destroy Structure 701 | . 2 64 43 54 72 . 25 140 253 . . . 48 Partial Spotted 15 | . . . . . . . . . 15 . . . . Lose Combat Pursuer 315 | . 15 60 30 . 45 . 15 . 45 . . . 105 Influence Decreases 7833 | 10 579 624 804 1061 1030 244 383 535 1052 941 160 74 336 Entered New Map 2634 | . . . 526 293 181 194 16 59 218 871 120 74 82 Time Decay 4019 | 10 489 594 278 538 623 30 337 346 604 50 40 . 80 Lost Part 820 | . 50 30 . 80 226 . 30 10 200 20 . . 174 Lost Ally 170 | . . . . . . 20 . 120 30 . . . . Purge Threat 190 | . 40 . . 150 . . . . . . . . . Squads Dispatched 62 | . 6 11 . 8 10 . 3 5 16 . . . 3 Investigation 20 | . 4 5 . 1 3 . 1 2 2 . . . 2 Extermination 14 | . . . . . 6 . 2 2 4 . . . . Reinforcement 19 | . 2 6 . 4 1 . . 1 4 . . . 1 Assault 5 | . . . . . . . . . 5 . . . . Garrison 4 | . . . . 3 . . . . 1 . . . . Intercept . | . . . . . . . . . . . . . . Searches Triggered . | . . . . . . . . . . . . . . Construction Impeded 5 | . . 1 . 1 . . . . 2 . . . 1 Haulers Reinforced 3 | . . . . . 1 . . . 2 . . . . Active Scanning Responses . | . . . . . . . . . . . . . . Cargo Convoy Interrupts 2 | . . . . . 1 . . . 1 . . . . Stealth | -11 -10 -9 -9 -8 -7 -7 -7 -7 -6 -6 -6 -6 -5 --------- Run | Yrd Mat Mat Min Mat Fac Was Fac Sto Fac Was Fac DSF Fac Distress Signals 18 | . 3 7 . 3 . . . 2 3 . . . . Communications Jammed . | . . . . . . . . . . . . . . Distress Signals . | . . . . . . . . . . . . . . Times Spotted 387 | . 46 71 15 48 39 6 11 43 83 5 . . 20 Peak Tracking Total 10 | . 5 7 3 5 10 6 2 6 9 3 . 1 9 Tactical Retreats 18 | . 1 4 1 . 2 . 1 3 1 1 . . 4 Traps | -11 -10 -9 -9 -8 -7 -7 -7 -7 -6 -6 -6 -6 -5 ------- Run | Yrd Mat Mat Min Mat Fac Was Fac Sto Fac Was Fac DSF Fac Traps Triggered 14 | . 1 1 . 4 2 . 1 2 3 . . . . Indirectly . | . . . . . . . . . . . . . . Trap Hack Attempts . | . . . . . . . . . . . . . . Triggered . | . . . . . . . . . . . . . . Disarmed . | . . . . . . . . . . . . . . Reprogrammed . | . . . . . . . . . . . . . . Reused . | . . . . . . . . . . . . . . Traps Extracted . | . . . . . . . . . . . . . . Installed . | . . . . . . . . . . . . . . Triggered . | . . . . . . . . . . . . . . Machines | -11 -10 -9 -9 -8 -7 -7 -7 -7 -6 -6 -6 -6 -5 ---------- Run | Yrd Mat Mat Min Mat Fac Was Fac Sto Fac Was Fac DSF Fac Machines Disabled 45 | . 1 3 6 . 6 . 7 7 14 . . . 1 Max in Single Turn 4 | . 1 1 4 . 2 . 4 1 4 . . . 1 Machines Repaired . | . . . . . . . . . . . . . . Machines Dismantled . | . . . . . . . . . . . . . . Machines Sabotaged . | . . . . . . . . . . . . . . Overloaded Fab Kills . | . . . . . . . . . . . . . . Hacking | -11 -10 -9 -9 -8 -7 -7 -7 -7 -6 -6 -6 -6 -5 --------- Run | Yrd Mat Mat Min Mat Fac Was Fac Sto Fac Was Fac DSF Fac Machines Accessed 39 | . 5 7 . 4 7 . 4 6 3 . 1 . 2 Terminals 28 | . 4 5 . 3 4 . 2 6 1 . 1 . 2 Fabricators 1 | . . . . . 1 . . . . . . . . Repair Stations 3 | . 1 . . . . . 1 . 1 . . . . Recycling Units . | . . . . . . . . . . . . . . Scanalyzers 6 | . . 2 . 1 1 . 1 . 1 . . . . Garrison Access 1 | . . . . . 1 . . . . . . . . Total Hacks 118 | . 14 23 . 25 17 . 7 16 6 . 2 . 8 Successful 49 | . 4 6 . 15 7 . 4 8 2 . 1 . 2 Failed 67 | . 10 16 . 10 10 . 3 7 4 . 1 . 6 Catastrophic 14 | . 2 3 . 2 1 . 3 2 1 . . . . Database Lockouts 2 | . . 1 . . . . . 1 . . . . . Manual 21 | . 3 4 . 2 . . 2 4 . . . . 6 Terminals 86 | . 12 17 . 15 10 . 4 16 2 . 2 . 8 Fabricators 4 | . . . . . 4 . . . . . . . . Repair Stations 5 | . 2 . . . . . 1 . 2 . . . . Recycling Units . | . . . . . . . . . . . . . . Scanalyzers 22 | . . 6 . 10 2 . 2 . 2 . . . . Garrison Access 1 | . . . . . 1 . . . . . . . . Terminal Hacks 33 | . 4 2 . 8 4 . 3 8 1 . 1 . 2 Record 6 | . . . . 1 . . . 3 . . . . 2 Prototype ID Bank 3 | . 1 . . 1 1 . . . . . . . . Open Door 2 | . . . . . . . . 2 . . . . . Open DSF 2 | . . . . . 1 . . . . . 1 . . Level Access Points 1 | . . . . . . . . . 1 . . . . Branch Access Points 1 | . 1 . . . . . . . . . . . . Emergency Access Points 2 | . . . . 1 . . 1 . . . . . . Unreport Threat 2 | . 1 . . 1 . . . . . . . . . Locate Traps 4 | . 1 1 . 1 . . . 1 . . . . . Dispatch Records 1 | . . 1 . . . . . . . . . . . Transport Status 1 | . . . . 1 . . . . . . . . . Reinforcement Status 1 | . . . . . . . . 1 . . . . . Hauler Manifests 2 | . . . . 1 1 . . . . . . . . Registered Components 1 | . . . . . . . . 1 . . . . . Zone Layout 4 | . . . . 1 1 . 2 . . . . . . Fabricator Hacks 3 | . . . . . 3 . . . . . . . . Network Status 1 | . . . . . 1 . . . . . . . . Load Schematic 1 | . . . . . 1 . . . . . . . . Build 1 | . . . . . 1 . . . . . . . . Repair Station Hacks . | . . . . . . . . . . . . . . Recycling Unit Hacks . | . . . . . . . . . . . . . . Scanalyzer 13 | . . 4 . 7 . . 1 . 1 . . . . Insert Component 5 | . . 1 . 3 . . . . 1 . . . . Analyze 2 | . . 1 . 1 . . . . . . . . . Retrieve Study 6 | . . 2 . 3 . . 1 . . . . . . Garrison Access Hacks . | . . . . . . . . . . . . . . Unauthorized Hacks . | . . . . . . . . . . . . . . Terminals . | . . . . . . . . . . . . . . Fabricators . | . . . . . . . . . . . . . . Repair Stations . | . . . . . . . . . . . . . . Recycling Units . | . . . . . . . . . . . . . . Scanalyzers . | . . . . . . . . . . . . . . Garrison Access . | . . . . . . . . . . . . . . Data Cores Recovered . | . . . . . . . . . . . . . . Used . | . . . . . . . . . . . . . . Hacking Detections 36 | . 5 7 . 3 7 . 4 4 3 . 1 . 2 Full Trace Events 22 | . 5 7 . 2 2 . 1 1 2 . . . 2 Feedback Events . | . . . . . . . . . . . . . . Feedback Blocked . | . . . . . . . . . . . . . . Robot Schematics Acquired . | . . . . . . . . . . . . . . Robots Built . | . . . . . . . . . . . . . . Authchips . | . . . . . . . . . . . . . . Time . | . . . . . . . . . . . . . . Total Robot Build Rating . | . . . . . . . . . . . . . . Part Schematics Acquired 2 | . . 1 . 1 . . . . . . . . . Parts Built . | . . . . . . . . . . . . . . Authchips . | . . . . . . . . . . . . . . Time 73 | . . . . . 73 . . . . . . . . Total Part Build Rating . | . . . . . . . . . . . . . . Part Studies Acquired 5 | . . 2 . 2 . . 1 . . . . . . Parts Repaired . | . . . . . . . . . . . . . . Time . | . . . . . . . . . . . . . . Parts Recycled . | . . . . . . . . . . . . . . Recycled Matter . | . . . . . . . . . . . . . . Retrieved Matter . | . . . . . . . . . . . . . . Retrieved Components . | . . . . . . . . . . . . . . Parts Scanalyzed 2 | . . 1 . 1 . . . . . . . . . Part Schematics Acquired 2 | . . 1 . 1 . . . . . . . . . Parts Damaged . | . . . . . . . . . . . . . . Bothacking | -11 -10 -9 -9 -8 -7 -7 -7 -7 -6 -6 -6 -6 -5 ------------ Run | Yrd Mat Mat Min Mat Fac Was Fac Sto Fac Was Fac DSF Fac Used RIF Installer . | . . . . . . . . . . . . . . Robots Hacked . | . . . . . . . . . . . . . . Non-combat . | . . . . . . . . . . . . . . Combat . | . . . . . . . . . . . . . . Robot Hacks Applied . | . . . . . . . . . . . . . . Relay Couplers Released 3 | . . . . . 3 . . . . . . . . Programmers 3 | . . . . . 3 . . . . . . . . Fabnet Peak Effective % . | . . . . . . . . . . . . . . Robots Rewired . | . . . . . . . . . . . . . . Allies Hacked . | . . . . . . . . . . . . . . Hacks Repelled . | . . . . . . . . . . . . . . Allies | -11 -10 -9 -9 -8 -7 -7 -7 -7 -6 -6 -6 -6 -5 -------- Run | Yrd Mat Mat Min Mat Fac Was Fac Sto Fac Was Fac DSF Fac Total Allies 11 | . . . . . . 1 . 10 . . . . . Largest Group 10 | . . . . . . 1 . 10 1 . . . . Highest-Rated Group 173 | . . . . . . 31 . 173 16 . . . . Highest-Rated Ally 31 | . . . . . . 31 . 29 16 . . . . Total Orders . | . . . . . . . . . . . . . . Ally Attacks 66 | . . . . . . 6 . 56 4 . . . . Total Damage 832 | . . . . . . 125 . 665 42 . . . . Kills 5 | . . . . . . . . 4 1 . . . . Allies Corrupted . | . . . . . . . . . . . . . . Allies Melted . | . . . . . . . . . . . . . . Intel | -11 -10 -9 -9 -8 -7 -7 -7 -7 -6 -6 -6 -6 -5 ------- Run | Yrd Mat Mat Min Mat Fac Was Fac Sto Fac Was Fac DSF Fac Active Infowar (turns) 6030 | 48 1304 . . . 1619 71 1069 302 1345 88 . . 184 Optics 1552 | . . . . . 1552 . . . . . . . . Sensors 1471 | . . . . . . . 224 302 816 88 . . 41 Terrain 2288 | 1 1304 . . . 67 71 845 . . . . . . Structural 837 | . . . . . . . . . 565 88 . . 184 Seismic 47 | 47 . . . . . . . . . . . . . Robot Analysis Total . | . . . . . . . . . . . . . . Derelict Logs Recovered . | . . . . . . . . . . . . . . Drone Launches 2 | . . . . . . . . . 2 . . . . Drone Recoveries 1 | . . . . . . . . . 1 . . . . Exploration | -11 -10 -9 -9 -8 -7 -7 -7 -7 -6 -6 -6 -6 -5 ------------- Run | Yrd Mat Mat Min Mat Fac Was Fac Sto Fac Was Fac DSF Fac Turns Passed 13621 | 137 1797 2023 604 1527 2866 71 1074 1157 1955 109 80 23 198 Spaces Moved 6807 | 66 779 1103 303 723 1145 142 629 602 957 155 10 33 160 Core 54 | 1 . . . 1 . . . . . . . . 52 Treads 1704 | 65 315 . . 501 557 . . 266 . . . . . Legs 3779 | . 464 1103 303 221 531 . . 259 876 . . . 22 Wheels . | . . . . . . . . . . . . . . Hover 1270 | . . . . . 57 142 629 77 81 155 10 33 86 Flight . | . . . . . . . . . . . . . . Fastest Speed 44 | 50 160 120 175 105 104 44 44 115 104 52 52 52 50 Average Speed 141 | 158 177 135 175 153 164 44 100 135 141 56 52 52 86 Slowest Speed 650 | 160 190 190 175 650 330 104 206 305 430 110 52 52 260 Overloaded Moves . | . . . . . . . . . . . . . . Propulsion Burnouts . | . . . . . . . . . . . . . . Robots Hopped . | . . . . . . . . . . . . . . Potential Cave-ins . | . . . . . . . . . . . . . . Cave-ins Triggered . | . . . . . . . . . . . . . . Exploration Rate (%) 47 | 4 77 80 67 46 14 72 15 80 19 92 . 42 5 Regions Visited 13 Branch Regions 2 Pre-discovered Areas . | . . . . . . . . . . . . . . Known Exits Taken 2 | . . . . . . . 1 . . . 1 . . Unknown Exits Taken 6 | 1 1 1 1 1 . . . 1 . . . . . Scrap Searched . | . . . . . . . . . . . . . . Spaces Dug 2 | . . . . 1 . . . . 1 . . . . Terrain Destroyed 833 | . . 70 48 65 75 . 33 167 352 . . . 23 Melee . | . . . . . . . . . . . . . . Projectile 86 | . . 27 10 27 14 . . 2 6 . . . . AOE 747 | . . 43 38 38 61 . 33 165 346 . . . 23 Terrain Rammed 2 | . . . . . 1 . 1 . . . . . . Walls Destroyed 1 | . . . . . 1 . . . . . . . . Machines Disabled 1 | . . . . . . . 1 . . . . . . Actions | -11 -10 -9 -9 -8 -7 -7 -7 -7 -6 -6 -6 -6 -5 --------- Run | Yrd Mat Mat Min Mat Fac Was Fac Sto Fac Was Fac DSF Fac Total 9469 | 85 1048 1389 331 934 1885 150 962 838 1354 177 84 38 194 Wait 1369 | . 160 84 . 32 526 3 226 110 138 15 74 . 1 Move 6795 | 65 778 1102 302 722 1145 141 628 601 956 154 9 32 160 Hop . | . . . . . . . . . . . . . . Pick Up 132 | 6 14 13 . 13 14 1 12 17 33 3 . 5 1 Fast Attach 53 | 6 1 . . 13 12 . 5 2 6 1 . . 7 Attach 82 | 1 5 5 . 7 15 . 8 8 24 1 1 . 7 Detach 7 | . 1 . . . . 1 1 1 . 3 . . . Swap 237 | 1 9 29 5 32 31 1 16 47 65 . . . 1 Drop 100 | . 4 22 1 9 11 3 10 8 29 . . 1 2 Fire 628 | 5 70 125 22 100 126 . 53 44 80 . . . 3 Melee 24 | . . . . . . . . . 13 . . . 11 Ram 5 | . . . . . 1 . 3 . . . . . 1 Kick 27 | . 5 9 1 . 3 . . . 9 . . . . Crush 9 | 1 1 . . 6 1 . . . . . . . . Escape Stasis 1 | . . . . . . . . . 1 . . . . Rewire . | . . . . . . . . . . . . . . Trap . | . . . . . . . . . . . . . . Miscellaneous . | . . . . . . . . . . . . . . Route ------- -11/Scrapyard -10/Materials (discovered 4 exits: *Mat x2 / *Min x2) -9/Materials (discovered 3 exits: *Mat x2 / [*Min]) -9/Mines -8/Materials -7/Factory -7/Waste -7/Factory -7/Storage -6/Factory (discovered 4 exits: Fac x4) -6/Waste -6/Factory -6/DSF -5/Factory History --------- Turn | Location | Event 33 | -11/Scrapyard | Discovered new exit (range 15) 138 | -11/Scrapyard | Entered Materials 310 | -10/Materials | Build established: Mutant 968 | -10/Materials | Discovered new exit (range 15) 1137 | -10/Materials | Discovered new exit (range 16) 1705 | -10/Materials | Discovered new exit (range 16) 1882 | -10/Materials | Identified exit to Mines 1935 | -10/Materials | Entered another Materials area 1935 | -9/Materials | Evolved 2 slots: Propulsion x2 2333 | -9/Materials | Discovered new exit (range 5) 2576 | -9/Materials | Discovered new exit (range 11) 2782 | -9/Materials | Build established: Scavenger-Mutant 3402 | -9/Materials | Discovered new exit (range 14) 3634 | -9/Materials | Central database locked down 3715 | -9/Materials | Destroyed 7 combat bots 3958 | -9/Materials | Entered Mines 3960 | -9/Mines | Core integrity fell below 50% 4546 | -9/Mines | Discovered new exit (range 9) 4562 | -9/Mines | Entered Materials 4562 | -8/Materials | Evolved 2 slots: Propulsion x1, Utility x1 5315 | -8/Materials | Build established: Mutant 5367 | -8/Materials | Garrison activated, responded to threat 5899 | -8/Materials | Discovered new exit (range 15) 6089 | -8/Materials | Entered Factory 6089 | -7/Factory | Evolved 2 slots: Power x1, Utility x1 7409 | -7/Factory | Lost 3 parts (2n1w) 7851 | -7/Factory | Cargo convoy interrupted 7891 | -7/Factory | Destroyed 8 combat bots 7909 | -7/Factory | Lost 12 parts (2p5n3u2w) 8205 | -7/Factory | Build established: Scavenger-Mutant 8955 | -7/Factory | Sucked down chute 8955 | -7/Factory | Entered Waste 8956 | -7/Waste | Met a frightened Derelict 8968 | -7/Waste | Spotted C-40 Crusher 9001 | -7/Waste | Spotted C-40 Crusher 9001 | -7/Waste | Spotted C-40 Crusher 9006 | -7/Waste | Spotted C-40 Crusher 9012 | -7/Waste | Spotted C-40 Crusher 9014 | -7/Waste | Spotted C-40 Crusher 9019 | -7/Waste | Discovered new exit (range 16) 9026 | -7/Waste | Entered Factory 9516 | -7/Factory | Discovered new exit (range 15) 9615 | -7/Factory | Core integrity fell below 50% 10099 | -7/Factory | Identified exit to Storage 10100 | -7/Factory | Entered Storage 10150 | -7/Storage | Found Rocket Array 10209 | -7/Storage | Met 01-MTF 10525 | -7/Storage | Build established: Mutant 10535 | -7/Storage | Central database locked down 10578 | -7/Storage | System corruption reached 10% 10645 | -7/Storage | Destroyed 01-MTF 10750 | -7/Storage | System corruption reached 30% 10928 | -7/Storage | Assisted by bots powering up and referring to "LRC-V3" 11004 | -7/Storage | Found Rocket Array 11229 | -7/Storage | Lost 7 allies 11233 | -7/Storage | Discovered new exit (range 16) 11257 | -7/Storage | Entered Factory 11257 | -6/Factory | Accompanied by 1 ally 11257 | -6/Factory | Evolved 2 slots: Utility x2 11867 | -6/Factory | Allied Derelicts emerged from ambush trap array 11878 | -6/Factory | Cargo convoy interrupted 11914 | -6/Factory | Destroyed 8 combat bots 11919 | -6/Factory | Lost 3 allies 11957 | -6/Factory | First assault squad dispatched 12124 | -6/Factory | Garrison activated, responded to threat 12192 | -6/Factory | Lost 4 parts (1p1n2u) 12506 | -6/Factory | Identified exit to Factory 12595 | -6/Factory | Core integrity fell below 50% 12645 | -6/Factory | Lost 12 parts (2p6n2u2w) 13212 | -6/Factory | Sucked down chute 13212 | -6/Factory | Entered Waste 13227 | -6/Waste | EMP discharged 13227 | -6/Waste | System corruption reached 10% 13240 | -6/Waste | Spotted C-40 Crusher 13242 | -6/Waste | Spotted C-40 Crusher 13245 | -6/Waste | Spotted C-40 Crusher 13262 | -6/Waste | Found Damper Plating 13265 | -6/Waste | Spotted C-40 Crusher 13273 | -6/Waste | Spotted C-40 Crusher 13283 | -6/Waste | Crushed by Compactor (1 part destroyed, 1 dropped) 13311 | -6/Waste | Discovered new exit (range 11) 13321 | -6/Waste | Entered Factory 13401 | -6/Factory | Identified exit to DSF 13401 | -6/Factory | Entered DSF 13415 | -6/DSF | Discovered exit to Factory (range 12) 13422 | -6/DSF | Additional patrols routed to DSF 13424 | -6/DSF | Entered Factory 13424 | -5/Factory | Evolved 2 slots: Propulsion x1, Utility x1 13539 | -5/Factory | Lost 8 parts (1p2n3u2w) 13557 | -5/Factory | Core integrity fell below 50% 13596 | -5/Factory | Core integrity fell below 20% 13622 | -5/Factory | Destroyed by S-27 Virus with Autogun Last Messages --------------- 13590_ Carbon-fiber Leg destroyed. 13590_ U-05 Engineer lays Concrete. 13591_ U-05 Engineer destroyed. 13592_ ALERT: Construction progress impeded, dispatching reinforcements to local area. 13593_ Imp. Grenade Launcher destroyed. 13594_ U-05 Engineer lays Concrete. 13597_ Acquired VTOL Module. 13597_ VTOL Module destroyed. 13598_ U-05 Engineer lays Concrete. 13599_ Imp. Hacking Suite destroyed. 13599_ U-05 Engineer lays Concrete. 13600_ Slug penetrates Reinforced Barrier. 13600_ Acquired 2 matter. 13600_ U-05 Engineer lays Concrete. 13602_ Imp. Hacking Suite destroyed. 13603_ Critical hit (Burn: +37). 13603_ U-05 Engineer lays Concrete. 13604_ K-01 Serf collects debris. 13605_ U-05 Engineer lays Concrete. Map ----- +----------------------------------------------------+ | ????????????????## ##??## ####?? | | ????????????????## ##??## | | ????????????????## ##??## """ | | ????????????????## ##??## """ | | ????????????????## ##??## """ | | ????????????????############/### ##??## """ | | ??????????????????## """""" # ##??## | | ??????????????????## """""" # ##??## | | ??????????????????## """""" # ##??## | | ??????????????????## """""" # ##??## | | ??????????????????## # ##??## !! | | ??????????????????## !!# ###### !! | | ??????????????????## ! # ###### % | | ??????????????????#########+#### #"#T ##### | | ??????????????????####### | | ?????????????############s = | | ?????????????############ ! = | | ????????????? # =%= | | ????????????????""" """ + ! | | ??????????## ?? """ """ # #####+######+## | | ??????????## """ """ # ## ! # # | | ??????????## # ## ? ?"# =### | | ??????????## """ + ## ?? ?"# %### | | ??????????## ?? """ #s + ?? ?"# ! /### | | ??????????????? """ # ## ????"# !! !### | | ?????????????? """#@ ## ????"# ### | | ????????????? !! Y"# ##????? # " " * ### | | ??????????## ! """# ## ???? # "Y" ### | | ??????????## # + ???? # """ ### | | ??????????############### # ???? ############ | | ?????????? ########## + ???? ###########? | | ???????????????????????## ## ????????????????? | | ??????????????????????? ## ????????????????? | | ???????????????????????####+#+##?????????????????? | | ??????????????????????? ?????????????????? | | ?????????????????????????????????????????????????? | | ?????????????????????????????????????????????????? | | ?????????????????????????????????????????????????? | | ?????????????????????????????????????????????????? | | ?????????????????????????????????????????????????? | | ?????????????????????????????????????????????????? | | ?????????????????????????????????????????????????? | | ?????????????????????????????????????????????????? | | ?????????????????????????????????????????????????? | | ?????????????????????????????????????????????????? | | ?????????????????????????????????????????????????? | | ?????????????????????????????????????????????????? | | ?????????????????????????????????????????????????? | | ?????????????????????????????????????????????????? | | ?????????????????????????????????????????????????? | +----------------------------------------------------+ Best States ------------- Heat Dissipation 61 Energy Generation 31 Energy Capacity 520 Matter Stores 500 Matter Capacity 500 Sight Range 20 Robot Scan Range 15 Terrain Scan Range 16 Terrain Scan Density 210 Armor Coverage 675 Resistance: TH 20 Evasion (%) 65 Targeting Accuracy 8 Melee Accuracy 6 Launcher Accuracy 20 Target Analysis 6 Recoil Reduction 5 Offensive Hacking 36 Authchip Count 2 Item Schematics ----------------- Assault Cannon | -9/Materials | Scanalyzed Hcp. Storage Unit | -8/Materials | Scanalyzed Robot Schematics ------------------ None Fabricated ------------ Nothing Repaired ---------- Nothing Studied --------- Aluminum Leg | -9/Materials | Hacked Rocket Launcher | -9/Materials | Hacked Assault Cannon | -8/Materials | Hacked Arm. Treads | -8/Materials | Hacked Gravmag System | -7/Factory | Hacked Alien Tech Used ----------------- None Achievements -------------- Backstab Below Botjacking Ew, Corruption Quick And Dirty Resistances Are Futile Treasure Hunter Window Shopping Challenges ------------ None Game ------ Seed SapperDecoderDesublimator Manual? 0 Play Time 03:25:57 Cumulative 16.4 hours Start 2026.07.28 @ 19:53:33 End 2026.07.28 @ 23:28:27 Sessions 3 Manual Loads 0 Difficulty Rogue Special Mode None Game No. 12 Rogue 12 Adventurer 0 Explorer 0 Win Type - Total 0 Types 0/0/0/0/0/0/0/0/0/0 Lore% 8 Gallery% 18 Achievement% 16 Wizard Run 0 Options --------- Layout 0 ASCII 0 Keyboard 1 Movement Mouse Keybinds 1 Fullscreen 1 Font 18/Smallcaps Map View 76x50 Zoom Use 0% Tactical HUD 1 Map Filters NONE Filters NONE Steam 1 RUN: e58ea556-5981-48bd-8228-ac08c588962b